bitfinex-derivatives/quotes_ETHF0:USTF0_20241229
["timestamp","ask_amount","ask_price","bid_price","bid_amount"]
[1735515227756,0.29892,3351.9,3351.7,0.86873]
[1735515228256,0.00197676,3352.0,3351.7,0.5698]
[1735515228554,0.29892,3351.8,3351.7,0.5698]
[1735515230155,0.29894,3351.6,3351.5,0.572]
[1735515230557,0.29895,3351.5,3351.4,3.2078]
[1735515231056,0.5756,3351.9,3351.4,3.2078]
[1735515231246,0.29895,3351.5,3351.4,3.2078]
[1735515231847,0.299,3351.0,3350.9,0.6008]
[1735515232951,0.29901,3350.8,3350.7,3.2078]
[1735515233655,0.29901,3350.9,3350.7,3.50682]
[1735515234047,0.5756,3351.3,3350.7,3.2078]
[1735515234248,0.29901,3350.8,3350.7,3.2078]
[1735515235760,2.91040049,3351.3,3350.7,5.47145213]
[1735515235952,0.29898,3351.2,3350.7,5.77047213]
[1735515236151,0.29901,3350.9,3350.7,5.77047213]
[1735515236451,0.29901,3350.8,3350.7,5.77047213]
[1735515236760,0.29901,3350.8,3350.7,5.47145213]
[1735515237555,0.29901,3350.8,3350.7,3.2078]
[1735515239661,0.29901,3350.8,3350.7,3.8159]
[1735515240459,0.29901,3350.8,3350.7,3.2078]
[1735515241257,0.29901,3350.8,3350.7,5.0223]
[1735515241556,2.33480049,3351.1,3351.0,0.299]
[1735515242357,6.57309331,3351.7,3351.4,0.29896]
[1735515242358,2.33480049,3351.6,3351.4,0.29896]
[1735515242656,1.38320049,3351.6,3351.5,7.60180213]
[1735515242861,1.38320049,3351.6,3351.5,48.40180213]
[1735515243057,0.43170049,3351.6,3351.5,48.40180213]
[1735515243763,0.00197676,3352.0,3351.9,0.29892]
[1735515243961,0.00197676,3352.0,3351.9,5.77037213]
[1735515245460,3.49543998,3352.8,3352.7,0.29884]
[1735515245659,3.49543998,3352.8,3352.7,5.77029213]
[1735515245960,2.54423998,3352.8,3352.7,5.77029213]
[1735515246157,2.54423998,3352.8,3352.7,46.57029213]
[1735515247154,6.99087997,3353.6,3352.7,46.57029213]
[1735515247155,3.2078,3353.8,3352.7,50.95960221]
[1735515247358,0.29878,3353.5,3353.2,3.50659]
[1735515247860,0.29878,3353.4,3353.2,3.50659]
[1735515248058,0.29879,3353.3,3353.2,3.2078]
[1735515248254,3.2078,3353.3,3352.7,4.68815008]
[1735515248453,0.5884,3353.2,3352.7,4.68815008]
[1735515248651,0.29883,3352.9,3352.6,4.68815008]
[1735515248856,0.29883,3352.9,3352.6,7.89595008]
[1735515249062,0.5884,3353.2,3352.6,7.89595008]
[1735515249258,0.29883,3352.9,3352.7,0.29884]
[1735515249462,0.29882,3353.0,3352.7,0.29884]
[1735515249660,0.29882,3353.0,3352.6,7.89595008]
[1735515249960,0.5884,3353.2,3352.6,3.2078]
[1735515250464,0.29884,3352.8,3352.6,3.2078]
[1735515250960,0.5884,3353.2,3352.6,3.2078]
[1735515251365,0.5884,3353.2,3352.7,0.29884]
[1735515251552,0.29882,3353.0,3352.7,0.29884]
[1735515251858,0.29884,3352.7,3352.6,3.2078]
[1735515252256,0.5884,3353.2,3352.6,3.2078]
[1735515252452,0.29881,3353.1,3352.8,0.29883]
[1735515252858,0.29882,3353.0,3352.8,0.29883]
[1735515253058,3.2078,3353.3,3352.6,3.2078]
[1735515253258,3.2078,3353.3,3352.8,0.29883]
[1735515253465,0.29881,3353.1,3352.8,0.29883]
[1735515253966,0.29884,3352.8,3352.6,3.50665]
[1735515254962,0.29884,3352.8,3352.6,3.2078]
[1735515255362,0.29884,3352.8,3352.6,3.50665]
[1735515256065,0.29881,3353.1,3352.6,3.2078]
[1735515256265,0.29881,3353.1,3352.9,0.29882]
[1735515256661,0.29881,3353.1,3352.6,3.2078]
[1735515256662,3.2078,3353.3,3352.7,40.8]
[1735515256864,0.29881,3353.1,3352.9,0.29882]
[1735515257061,0.29881,3353.1,3352.7,40.8]
[1735515257062,3.2078,3353.3,3352.7,40.8]
[1735515257366,0.2988,3353.2,3352.7,40.8]
[1735515257578,0.2988,3353.2,3352.9,0.29882]
[1735515258060,0.6065,3353.7,3353.6,0.29876]
[1735515258261,0.29877,3353.6,3353.4,0.29877]
[1735515258452,0.90526,3353.7,3353.5,0.29877]
[1735515258866,0.29876,3353.6,3353.5,0.29877]
[1735515259066,0.90526,3353.7,3353.5,0.29877]
[1735515259566,3.2078,3353.9,3353.2,0.6221]
[1735515259770,0.29878,3353.5,3353.3,0.29878]
[1735515260667,3.2078,3353.9,3353.3,0.29878]
[1735515260964,0.29878,3353.5,3353.3,0.29878]
[1735515261866,0.2988,3353.2,3353.1,3.2078]
[1735515262764,0.74701,3353.2,3352.6,3.2078]
[1735515262965,0.29884,3352.7,3352.6,3.2078]
[1735515263367,0.29883,3352.9,3352.7,0.29884]
[1735515263566,3.829,3353.4,3352.6,3.2078]
[1735515263766,0.74698,3353.3,3352.6,3.2078]
[1735515264063,0.29884,3352.7,3352.6,3.2078]
[1735515264666,0.29884,3352.7,3352.6,3.50665]
[1735515265168,0.29884,3352.7,3352.6,3.2078]
[1735515265471,0.29884,3352.7,3352.6,3.50665]
[1735515265766,0.29884,3352.8,3352.6,3.50665]
[1735515266472,3.829,3353.4,3352.6,3.2078]
[1735515266666,0.29883,3352.8,3352.7,0.29884]
[1735515266967,3.829,3353.4,3352.6,3.2078]
[1735515267170,0.29883,3352.9,3352.7,0.29884]
[1735515268277,0.29879,3353.3,3352.7,0.29884]
[1735515268569,3.829,3353.4,3352.7,0.29884]
[1735515268968,4.57598,3353.4,3352.7,0.29884]
[1735515269173,0.29884,3352.8,3352.6,3.50664]
[1735515269667,0.29884,3352.8,3352.6,3.2078]
[1735515269969,0.29884,3352.8,3352.7,0.29884]
[1735515270972,0.74698,3353.3,3352.6,3.2078]
[1735515271172,0.29884,3352.7,3352.6,3.2078]
[1735515272268,3.8349,3353.0,3352.2,3.8321]
[1735515272579,0.29888,3352.3,3352.2,3.2078]
[1735515273263,4.58195,3353.0,3352.2,3.2078]
[1735515273465,4.4275,3353.0,3352.4,2.26005528]
[1735515273673,0.29885,3352.7,3352.6,0.29885]
[1735515274366,0.29885,3352.7,3352.5,1.2193]
[1735515274367,0.29885,3352.6,3352.5,1.2193]
[1735515274766,0.29885,3352.6,3352.5,1.51816]
[1735515275168,0.29885,3352.6,3352.5,42.31816]
[1735515275665,0.29885,3352.6,3352.5,40.8]
[1735515275867,0.29887,3352.4,3352.3,0.621]
[1735515276271,0.29887,3352.4,3352.2,3.2078]
[1735515276469,0.89948,3352.3,3352.2,3.2078]
[1735515276672,0.6006,3352.3,3351.9,1.2021]
[1735515276872,0.29891,3352.0,3351.9,1.2021]
[1735515277478,0.29891,3352.0,3351.9,42.0021]
[1735515279175,0.29891,3352.0,3351.9,42.30102]
[1735515279474,0.29891,3352.0,3351.9,42.0021]
[1735515280183,0.6006,3352.3,3351.8,3.2078]
[1735515280385,0.29892,3351.9,3351.8,3.2078]
[1735515281274,0.6006,3352.3,3351.8,5.46785528]
[1735515281479,0.6006,3352.3,3351.9,0.92558]
[1735515281480,0.29888,3352.0,3351.9,0.92558]
[1735515282383,3.2078,3352.5,3351.9,0.6267]
[1735515282584,0.29885,3352.4,3352.3,3.50665]
[1735515282785,0.29886,3352.4,3352.3,3.50666]
[1735515282982,0.585,3352.8,3352.3,3.2078]
[1735515283578,0.29886,3352.4,3352.3,3.50667]
[1735515284480,3.2078,3353.4,3352.3,8.95497]
[1735515284677,4.66058664,3353.5,3353.2,2.26005528]
[1735515284990,0.29878,3353.4,3353.2,2.55884528]
[1735515285177,0.29878,3353.4,3353.3,0.29879]
[1735515285679,0.583,3353.9,3353.4,0.29878]
[1735515285680,0.29875,3353.8,3353.4,0.29878]
[1735515285873,0.29875,3353.8,3353.6,0.29875]
[1735515286279,0.29876,3353.7,3353.5,0.29876]
[1735515286582,0.29875,3353.8,3353.6,0.29875]
[1735515287289,0.29875,3353.8,3353.3,3.2078]
[1735515287290,0.2988,3353.1,3353.0,5.284976]
[1735515287493,0.2988,3353.1,3353.0,5.583786]
[1735515287788,0.2988,3353.1,3353.0,4.683376]
[1735515288181,0.29881,3353.0,3352.9,3.2078]
[1735515289191,3.2078,3353.1,3352.7,4.683376]
[1735515289389,0.29883,3352.8,3352.7,4.683376]
[1735515289583,0.29885,3352.6,3352.5,0.88845]
[1735515289790,3.8224,3353.1,3352.5,0.5896]
[1735515289993,0.29884,3352.8,3352.6,0.29885]
[1735515290192,3.8224,3353.1,3352.6,0.29885]
[1735515290389,0.29884,3352.7,3352.6,0.29885]
[1735515290594,0.29882,3352.7,3352.5,0.88843]
[1735515290790,3.8224,3353.1,3352.5,0.5896]
[1735515290988,0.29883,3352.5,3352.4,0.5827]
[1735515293598,0.29883,3352.5,3352.4,0.88154]
[1735515294100,3.8224,3353.1,3352.4,0.5827]
[1735515294301,3.8224,3353.1,3352.5,0.29883]
[1735515294499,0.29884,3352.4,3352.3,4.683376]
[1735515295698,0.29888,3352.0,3351.9,3.2078]
[1735515297095,0.5993,3352.5,3351.9,3.2078]
[1735515297400,3.50663,3352.6,3352.4,2.55888528]
[1735515298606,0.29881,3352.8,3352.7,0.29881]
[1735515299105,0.29881,3352.8,3352.7,41.09881]
[1735515299303,0.29881,3352.8,3352.6,0.29882]
[1735515299702,0.29881,3352.8,3352.6,41.09882]
[1735515300001,0.29881,3352.8,3352.7,0.5685]
[1735515301205,5.94118418,3353.6,3353.2,0.29876]
[1735515301206,3.50656,3353.4,3353.2,0.29876]
[1735515301400,3.50656,3353.4,3353.3,0.5685]
[1735515302003,0.29875,3353.5,3353.3,0.5685]
[1735515302304,0.29874,3353.6,3353.4,2.55880528]
[1735515302699,0.29872,3353.8,3353.6,0.29873]
[1735515302911,4.66918418,3353.9,3353.7,2.55877528]
[1735515302912,4.96789418,3353.9,3353.7,2.55877528]
[1735515303511,4.66918418,3353.9,3353.5,3.2078]
[1735515303906,0.29873,3353.7,3353.5,44.30654]
[1735515304406,0.29873,3353.6,3353.5,44.0078]
[1735515304708,0.29873,3353.6,3353.5,3.2078]
[1735515305106,3.2078,3354.0,3353.5,3.2078]
[1735515305712,3.2078,3354.0,3353.7,2.26005528]
[1735515305911,0.29871,3353.9,3353.7,2.55877528]
[1735515306305,0.29872,3353.8,3353.7,2.26005528]
[1735515306504,0.29872,3353.8,3353.7,2.55877528]
[1735515307205,0.29872,3353.8,3353.7,2.26005528]
[1735515307411,0.29872,3353.8,3353.6,0.29873]
[1735515307911,0.29872,3353.8,3353.7,0.29872]
[1735515308214,3.2078,3354.0,3353.7,0.29872]
[1735515308512,0.29871,3353.9,3353.7,0.29872]
[1735515309203,3.2078,3354.0,3353.7,2.26005528]
[1735515309612,0.29871,3353.9,3353.8,0.29872]
[1735515310505,3.2078,3354.0,3353.8,0.29872]
[1735515310703,3.5065,3354.0,3353.8,0.29872]
[1735515310906,3.5065,3354.0,3353.9,0.5757]
[1735515313618,3.2078,3354.0,3353.5,3.2078]
[1735515313917,0.29875,3353.4,3353.1,10.23286401]
[1735515314718,3.2078,3353.6,3353.1,3.2078]
[1735515314916,0.29877,3353.2,3353.1,3.2078]
[1735515315718,0.29877,3353.2,3353.1,5.46785528]
[1735515316220,0.29877,3353.3,3353.1,5.76662528]
[1735515316420,3.2078,3353.6,3353.1,5.46785528]
[1735515316615,3.50654,3353.6,3353.5,0.29874]
[1735515318019,0.29874,3353.6,3353.5,3.2078]
[1735515319024,0.571,3353.8,3353.2,1.1993]
[1735515319322,0.29879,3353.3,3353.2,1.1993]
[1735515319817,0.29878,3353.4,3353.3,0.29879]
[1735515320024,0.571,3353.8,3353.2,1.1993]
[1735515320220,1.31788,3353.8,3353.1,5.46785528]
[1735515320421,0.2988,3353.2,3353.1,3.2078]
[1735515321022,0.6097,3353.5,3352.7,4.683376]
[1735515321222,0.29883,3352.8,3352.7,4.683376]
[1735515321423,3.50663,3352.8,3352.7,4.683376]
[1735515321626,0.29886,3352.5,3352.4,4.683376]
[1735515322717,3.2078,3352.8,3352.4,4.683376]
[1735515322924,3.2078,3353.6,3352.7,4.52011056]
[1735515323127,3.2078,3353.6,3353.5,0.29877]
[1735515323524,3.2078,3353.6,3353.5,41.09877]
[1735515323834,3.50656,3353.6,3353.5,40.8]
[1735515324132,3.2078,3353.6,3353.4,2.26005528]
[1735515324326,0.29877,3353.5,3353.4,2.26005528]
[1735515324726,0.29877,3353.5,3353.4,43.35883528]
[1735515324919,0.29877,3353.5,3353.4,2.55883528]
[1735515325628,3.50657,3353.6,3353.4,2.55883528]
[1735515325828,0.29877,3353.5,3353.4,2.55883528]
[1735515326228,3.2078,3353.6,3353.4,2.26005528]
[1735515326419,0.29876,3353.7,3353.5,0.29877]
[1735515327032,0.29876,3353.6,3353.5,0.29877]
[1735515327234,3.2078,3354.0,3353.5,0.29877]
[1735515327429,0.29877,3353.5,3353.4,2.55883528]
[1735515327624,3.2078,3354.0,3353.4,2.26005528]
[1735515327829,0.29876,3353.7,3353.5,0.29877]
[1735515330632,0.29877,3353.5,3353.4,2.55883528]
[1735515330834,3.95463,3354.0,3353.3,0.611]
[1735515331029,0.29878,3353.4,3353.3,0.29879]
[1735515331330,0.29878,3353.4,3353.2,7.891176]
[1735515331531,0.29878,3353.4,3353.3,0.29879]
[1735515331927,3.95463,3354.0,3353.2,3.50659]
[1735515331928,1.04559,3353.9,3353.2,3.50659]
[1735515332225,0.29874,3353.9,3353.2,3.5066]
[1735515332429,0.29878,3353.4,3353.2,3.50659]
[1735515333030,0.29874,3353.9,3353.2,3.50659]
[1735515333235,0.29879,3353.4,3353.3,0.29879]
[1735515333434,3.2078,3354.0,3353.2,3.2078]
[1735515333632,0.29877,3353.6,3353.5,0.29877]
[1735515335030,0.6233,3354.1,3353.4,2.26005528]
[1735515335231,0.6233,3354.1,3353.8,0.29874]
[1735515335736,0.6233,3354.1,3353.8,0.87234]
[1735515336038,0.29874,3353.9,3353.8,0.87234]
[1735515336236,0.29874,3353.9,3353.8,0.5736]
[1735515338243,0.6233,3354.1,3353.7,3.2078]
[1735515338429,0.29875,3353.8,3353.7,3.2078]
[1735515339335,3.8311,3354.1,3353.3,8.469076]
[1735515339546,0.29878,3353.4,3353.3,8.469076]
[1735515340037,0.29878,3353.4,3353.3,7.891176]
[1735515341042,3.2078,3354.1,3353.3,7.891176]
[1735515341238,0.29874,3353.9,3353.7,3.50655]
[1735515341438,0.29874,3353.9,3353.8,0.5807]
[1735515341638,0.29874,3353.9,3353.7,3.50655]
[1735515341639,0.29877,3353.5,3353.4,1.53128]
[1735515342334,0.29877,3353.5,3353.4,0.6215]
[1735515342532,0.74687,3353.9,3353.2,5.264076]
[1735515342734,0.29879,3353.3,3353.2,5.264076]
[1735515344744,0.29879,3353.3,3353.2,0.5807]
[1735515345241,0.29879,3353.3,3353.1,4.683376]
[1735515345242,0.6012,3353.5,3353.1,4.683376]
[1735515345443,0.2988,3353.2,3353.1,4.683376]
[1735515346339,0.29881,3353.1,3353.0,4.683376]
[1735515347843,0.29882,3353.0,3352.9,3.2078]
[1735515348049,0.29885,3352.6,3352.5,4.683376]
[1735515348846,0.29883,3352.9,3352.7,0.29884]
[1735515349947,3.2078,3353.0,3352.7,0.29884]
[1735515349948,0.29883,3352.8,3352.7,0.29884]
[1735515350144,3.49817973,3353.1,3352.7,2.26005528]
[1735515350350,0.29882,3353.0,3352.8,0.29883]
[1735515350537,0.29882,3353.0,3352.9,0.6254]
[1735515350740,0.29882,3353.0,3352.9,41.4254]
[1735515351756,0.29882,3353.0,3352.9,40.8]
[1735515352058,0.29884,3352.7,3352.6,3.2078]
[1735515352456,0.29885,3352.6,3352.5,5.281676]
[1735515352854,0.29885,3352.6,3352.5,4.683376]
[1735515353254,0.5739,3352.9,3352.4,2.83015528]
[1735515353456,0.29886,3352.5,3352.4,2.83015528]
[1735515353759,0.29886,3352.5,3352.4,3.12902528]
[1735515354849,0.29886,3352.5,3352.4,0.5701]
[1735515355462,0.29888,3352.3,3352.2,5.281676]
[1735515356162,0.29888,3352.3,3352.2,0.5983]
[1735515357257,1.3331,3352.8,3352.2,0.5983]
[1735515357258,0.586,3352.8,3352.2,0.5983]
[1735515357456,0.29883,3352.6,3352.5,0.29884]
[1735515359258,3.2078,3353.0,3352.4,2.26005528]
[1735515359465,3.50661,3353.0,3352.8,0.29883]
[1735515359765,3.50661,3353.0,3352.9,1.2257]
[1735515361064,0.29883,3352.7,3352.6,40.8]
[1735515361265,0.29884,3352.6,3352.5,3.2078]
[1735515362663,0.29883,3352.8,3352.7,0.29883]
[1735515362858,0.29884,3352.7,3352.6,0.29884]
[1735515363059,3.2078,3353.0,3352.5,5.46785528]
[1735515363268,0.29884,3352.7,3352.6,0.29884]
[1735515363463,3.2078,3353.0,3352.5,5.46785528]
[1735515363664,0.29884,3352.6,3352.5,5.76670528]
[1735515363862,0.29884,3352.7,3352.6,0.29884]
[1735515364060,0.29884,3352.6,3352.5,3.2078]
[1735515366271,0.29885,3352.5,3352.4,0.5595]
[1735515366468,0.29888,3352.2,3352.1,9.052576]
[1735515366767,2.55893528,3352.2,3352.1,4.683376]
[1735515366965,2.55893528,3352.2,3352.1,3.757876]
[1735515367271,7.26005528,3352.2,3352.0,6.66273001]
[1735515367470,0.29889,3352.1,3352.0,6.32233001]
[1735515367772,0.29891,3351.9,3351.8,4.68755686]
[1735515367971,5.76676528,3351.9,3351.8,4.68755686]
[1735515368571,10.98002735,3351.9,3351.8,3.99378686]
[1735515369063,1.55591,3351.9,3351.8,3.99378686]
[1735515369370,3.59321916,3351.9,3351.2,2.26005528]
[1735515369572,0.29894,3351.3,3351.2,2.26005528]
[1735515369869,0.29892,3351.6,3351.4,0.29893]
[1735515370264,2.33621916,3351.9,3351.3,0.29893]
[1735515370465,4.75517973,3352.0,3351.2,2.55899528]
[1735515370466,0.29893,3351.4,3351.2,2.55899528]
[1735515370662,1.257,3352.0,3351.2,2.26005528]
[1735515370865,0.29892,3351.5,3351.3,0.29894]
[1735515371266,0.29892,3351.5,3351.2,2.26005528]
[1735515371267,0.29892,3351.5,3351.4,0.29893]
[1735515373172,0.29892,3351.5,3351.4,41.09893]
[1735515373367,0.29892,3351.5,3351.4,40.8]
[1735515373573,0.29892,3351.5,3351.4,41.09893]
[1735515373765,3.95501,3352.3,3351.4,40.8]
[1735515373966,0.29886,3352.2,3351.8,0.29889]
[1735515374167,0.29888,3352.0,3351.9,1.7994]
[1735515374565,3.49817973,3352.6,3351.9,1.7994]
[1735515374768,0.29885,3352.3,3352.2,3.2078]
[1735515374971,3.49817973,3352.6,3351.9,2.09828]
[1735515374972,0.29884,3352.4,3351.9,2.09828]
[1735515375274,0.29888,3352.0,3351.9,1.7994]
[1735515375773,0.29888,3352.0,3351.9,2.09829]
[1735515376271,0.29888,3352.0,3351.9,1.7994]
[1735515378379,0.29887,3352.1,3351.9,2.09828]
[1735515378680,0.29888,3352.0,3351.9,2.09828]
[1735515379071,0.29888,3352.0,3351.9,1.7994]
[1735515380273,0.29888,3352.0,3351.9,1.2076]
[1735515380875,2.33621916,3352.9,3352.8,0.29881]
[1735515381171,1.44871916,3352.9,3352.8,0.29881]
[1735515381871,0.29877,3353.2,3353.0,0.29879]
[1735515382876,0.29875,3353.5,3353.3,0.29875]
[1735515383080,0.29875,3353.5,3353.4,0.5678]
[1735515383378,0.29875,3353.5,3353.4,1.1801]
[1735515384177,3.49817973,3353.9,3353.4,1.1801]
[1735515384366,3.79688973,3353.9,3353.6,0.29873]
[1735515384976,0.29871,3353.9,3353.6,0.29873]
[1735515385280,0.29872,3353.8,3353.6,0.29873]
[1735515386185,0.29872,3353.8,3353.5,3.7461]
[1735515386378,0.29872,3353.8,3353.5,4.04484]
[1735515386578,0.29872,3353.8,3353.6,0.29873]
[1735515387380,0.29872,3353.8,3353.5,4.04484]
[1735515388384,0.29872,3353.8,3353.5,3.7461]
[1735515388575,0.29871,3353.9,3353.6,0.29873]
[1735515388775,0.29872,3353.8,3353.6,0.29873]
[1735515388986,3.2078,3354.4,3353.5,6.00615528]
[1735515389285,0.29867,3354.3,3354.1,0.29868]
[1735515389588,0.29867,3354.4,3354.2,1.1029]
[1735515390780,3.79682973,3354.6,3354.3,3.50646]
[1735515390983,3.49817973,3354.6,3354.4,0.29866]
[1735515391180,3.79682973,3354.6,3354.3,3.2078]
[1735515391382,3.49817973,3354.6,3354.4,0.29866]
[1735515391676,0.29864,3354.7,3354.4,0.29866]
[1735515392082,0.29864,3354.7,3354.5,0.5313]
[1735515392384,3.50641,3355.0,3354.8,0.29863]
[1735515392602,3.50641,3355.0,3354.9,1.1289]
[1735515393087,0.29861,3355.0,3354.9,1.1289]
[1735515395484,3.95426,3355.4,3354.7,3.2078]
[1735515395690,0.29855,3355.7,3355.4,0.29857]
[1735515395890,0.23772951,3355.8,3355.5,0.5547]
[1735515396081,3.49817973,3356.0,3355.5,1.6626]
[1735515396387,0.29853,3355.9,3355.7,0.29855]
[1735515396789,3.49817973,3356.0,3355.5,1.6626]
[1735515397384,0.29855,3355.7,3355.5,1.6626]
[1735515397994,0.29855,3355.7,3355.5,1.96116]
[1735515398292,0.29855,3355.7,3355.5,1.6626]
[1735515398587,0.29855,3355.7,3355.5,1.96116]
[1735515399390,0.29855,3355.7,3355.5,1.6626]
[1735515399683,0.29855,3355.7,3355.5,1.96116]
[1735515400099,3.2078,3356.3,3355.5,1.6626]
[1735515400293,3.5063,3356.3,3356.1,0.29851]
[1735515400489,3.5063,3356.3,3356.2,0.5881]
[1735515400684,3.5063,3356.3,3356.2,0.58599492]
[1735515402979,3.2078,3356.3,3356.2,0.88449492]
[1735515403187,3.2078,3356.3,3356.2,0.58599492]
[1735515403394,3.2078,3356.3,3356.2,0.88449492]
[1735515403792,3.2078,3356.3,3356.2,0.58599492]
[1735515404188,3.2078,3356.3,3356.2,0.88449492]
[1735515404389,3.2078,3356.3,3356.2,1.17039492]
[1735515404593,3.2078,3356.3,3356.2,1.46889492]
[1735515406491,3.2078,3357.2,3356.2,1.17039492]
[1735515406694,0.29844,3357.0,3356.6,2.26005528]
[1735515406895,0.29844,3356.9,3356.8,0.29845]
[1735515407693,3.2078,3357.2,3356.8,0.29845]
[1735515408094,3.2078,3357.2,3356.6,2.26005528]
[1735515408294,0.29844,3356.9,3356.7,0.29845]
[1735515408489,3.2078,3357.2,3356.6,2.26005528]
[1735515408703,0.29842,3357.1,3356.9,0.29843]
[1735515408999,0.29842,3357.1,3357.0,1.1093]
[1735515410495,4.74348469,3357.8,3357.0,6.1093]
[1735515410496,0.23776469,3357.8,3357.0,6.1093]
[1735515410701,0.29831,3358.4,3357.8,0.29836]
[1735515410902,0.29834,3358.1,3357.8,0.29836]
[1735515411103,0.74571,3358.7,3357.8,0.29836]
[1735515411298,0.29836,3357.8,3357.7,3.2078]
[1735515411504,0.29838,3357.6,3357.3,3.2078]
[1735515411701,1.1354,3358.1,3357.6,0.29838]
[1735515411901,1.1354,3358.1,3357.5,2.26005528]
[1735515412202,0.29838,3357.6,3357.5,2.26005528]
[1735515412399,1.1354,3358.1,3357.5,2.26005528]
[1735515412792,0.29837,3357.7,3357.5,2.26005528]
[1735515412998,0.29836,3357.8,3357.5,2.55843528]
[1735515413205,0.29836,3357.9,3357.6,0.29837]
[1735515413405,2.21393,3358.7,3357.4,0.5887]
[1735515413406,0.74573,3358.7,3357.8,5.46785528]
[1735515413598,0.29834,3358.1,3357.9,0.29835]
[1735515413800,0.29832,3358.4,3357.9,0.29835]
[1735515413994,0.29829,3358.6,3358.2,3.2078]
[1735515414204,0.29831,3358.4,3358.2,3.2078]
[1735515414407,0.29831,3358.4,3358.2,3.50612]
[1735515414901,0.29831,3358.4,3358.2,3.2078]
[1735515415109,1.118,3358.7,3358.2,3.2078]
[1735515415305,0.29832,3358.3,3358.2,3.2078]
[1735515423409,1.29831,3358.7,3357.8,5.46785528]
[1735515423702,3.2078,3358.8,3357.8,5.46785528]
[1735515423907,0.29833,3358.2,3358.0,3.50614]
[1735515424107,0.29833,3358.2,3358.1,0.5389]
[1735515424807,0.29833,3358.2,3358.1,2.79895528]
[1735515425002,0.29833,3358.2,3358.1,3.34525528]
[1735515425502,0.29828,3358.8,3358.6,0.29828]
[1735515425706,0.29825,3359.0,3358.6,2.55834528]
[1735515425906,0.29828,3358.7,3358.6,2.26005528]
[1735515426404,2.23537659,3359.7,3358.6,2.55834528]
[1735515426405,1.04374,3359.5,3358.6,2.55834528]
[1735515426604,0.29825,3359.0,3358.9,3.2078]
[1735515426813,0.29826,3358.9,3358.8,0.5463]
[1735515427307,0.74559,3359.3,3358.5,3.2078]
[1735515427500,0.29829,3358.6,3358.5,3.2078]
[1735515427704,0.29829,3358.7,3358.5,3.5061]
[1735515427903,0.29829,3358.6,3358.5,3.2078]
[1735515429306,0.29834,3358.0,3357.9,3.2078]
[1735515429502,3.2078,3358.7,3357.7,2.26005528]
[1735515429809,0.29836,3357.8,3357.7,2.26005528]
[1735515430902,1.1183,3358.2,3357.5,3.7305]
[1735515431106,1.1183,3358.2,3357.5,3.2078]
[1735515431107,0.29838,3357.6,3357.5,3.2078]
[1735515433706,0.29844,3356.9,3356.8,3.2078]
[1735515433907,0.29845,3356.8,3356.7,40.8]
[1735515434115,0.29845,3356.8,3356.4,3.2078]
[1735515434116,3.00609528,3357.2,3356.4,3.2078]
[1735515434307,0.29848,3356.5,3356.4,3.2078]
[1735515436417,0.5317,3356.7,3356.0,40.8]
[1735515436609,0.29852,3356.0,3355.9,3.2078]
[1735515440613,4.03725528,3356.3,3355.4,3.2078]
[1735515440614,0.29856,3355.5,3355.4,3.2078]
[1735515441118,0.29854,3355.8,3355.4,3.50637]
[1735515441414,1.255,3356.3,3355.6,2.26005528]
[1735515441715,0.29849,3356.4,3356.0,0.29851]
[1735515442012,0.2985,3356.3,3356.1,1.6625]
[1735515442411,3.7395,3356.7,3356.1,1.6625]
[1735515442716,0.29848,3356.5,3356.1,1.961]
[1735515442912,0.29848,3356.5,3356.2,0.2985]
[1735515443305,3.2078,3356.7,3356.4,0.29848]
[1735515443511,3.2078,3356.7,3356.1,1.6625]
[1735515443512,3.2078,3356.7,3356.6,0.29847]
[1735515443909,3.2078,3356.7,3356.6,41.09847]
[1735515444319,3.50626,3356.7,3356.6,40.8]
[1735515444512,3.2078,3356.7,3356.6,40.8]
[1735515444814,3.2078,3356.7,3356.6,41.09847]
[1735515445611,3.2078,3356.7,3356.6,40.8]
[1735515445908,0.29841,3357.3,3357.1,0.29842]
[1735515446611,0.5653,3358.1,3357.1,2.26005528]
[1735515446806,0.5653,3358.1,3357.6,3.2078]
[1735515447003,0.29837,3357.7,3357.6,3.2078]
[1735515448607,0.74578,3358.4,3357.6,3.2078]
[1735515449111,0.29837,3357.7,3357.6,3.2078]
[1735515451308,0.29835,3357.9,3357.7,0.29836]
[1735515451514,0.29835,3358.0,3357.7,1.41537]
[1735515451713,0.29835,3358.0,3357.8,0.29836]
[1735515452014,0.29835,3358.0,3357.9,40.8]
[1735515452713,0.29833,3358.2,3357.9,41.09835]
[1735515452912,0.29833,3358.2,3358.0,3.2078]
[1735515453119,3.2078,3358.7,3358.0,3.2078]
[1735515453514,0.29831,3358.4,3358.1,0.29833]
[1735515453715,3.2078,3358.7,3358.1,0.29833]
[1735515454124,3.50608,3358.7,3358.4,0.29831]
[1735515454321,3.50608,3358.7,3358.5,0.5624]
[1735515454522,3.2078,3358.7,3358.5,0.5624]
[1735515454722,0.29829,3358.6,3358.5,0.5624]
[1735515455522,0.29833,3358.1,3358.0,3.2078]
[1735515455726,0.29832,3358.3,3358.0,3.2078]
[1735515455923,0.29833,3358.2,3358.0,3.2078]
[1735515456119,0.29832,3358.3,3358.0,3.50614]
[1735515456824,3.2078,3359.2,3358.0,3.2078]
[1735515457026,0.29829,3358.6,3358.5,3.2078]
[1735515457227,0.29832,3358.2,3358.1,3.2078]
[1735515457832,0.74566,3358.9,3358.2,0.29832]
[1735515457833,0.2983,3358.5,3358.2,0.29832]
[1735515458021,0.74566,3358.9,3358.1,3.2078]
[1735515458022,0.29832,3358.2,3358.1,3.2078]